bitfinex/quotes_BTCUSD_20241002
["timestamp","ask_amount","ask_price","bid_price","bid_amount"]
[1727868780496,0.81009486,61381.0,61380.0,0.016071]
[1727868780753,0.80409486,61381.0,61380.0,0.015071]
[1727868780995,0.83864433,61381.0,61380.0,0.016071]
[1727868781221,0.82964433,61381.0,61380.0,0.015071]
[1727868781432,0.83864433,61381.0,61380.0,0.016071]
[1727868781687,0.84964433,61381.0,61380.0,0.016071]
[1727868782193,0.75047845,61381.0,61380.0,0.016071]
[1727868782436,0.56204716,61381.0,61380.0,0.016071]
[1727868782694,0.63485747,61381.0,61380.0,0.016071]
[1727868783447,0.63285747,61381.0,61380.0,0.016071]
[1727868783969,0.56204716,61381.0,61380.0,0.016071]
[1727868784533,1.50000716,61381.0,61380.0,0.016071]
[1727868784797,0.36655716,61381.0,61380.0,0.016071]
[1727868785275,1.07093916,61381.0,61380.0,0.016071]
[1727868785520,1.18821118,61381.0,61380.0,0.016071]
[1727868785762,1.26101228,61381.0,61380.0,0.016071]
[1727868787042,1.25901228,61381.0,61380.0,0.016071]
[1727868787266,0.77986755,61381.0,61380.0,0.016071]
[1727868787477,0.73134776,61381.0,61380.0,0.016071]
[1727868787684,0.64961776,61381.0,61380.0,0.016071]
[1727868788564,0.65161776,61381.0,61380.0,0.016071]
[1727868788784,0.81649958,61381.0,61380.0,0.016071]
[1727868788998,0.81449958,61381.0,61380.0,0.016071]
[1727868790247,0.86301937,61381.0,61380.0,0.016071]
[1727868790670,0.81449958,61381.0,61380.0,0.016071]
[1727868792131,0.81649958,61381.0,61380.0,0.016071]
[1727868792345,0.86501937,61381.0,61380.0,0.016071]
[1727868792556,0.88930068,61381.0,61380.0,0.016071]
[1727868792789,0.26985015,61380.0,61379.0,0.001636]
[1727868793019,0.26985015,61380.0,61375.0,0.001636]
[1727868793020,0.54119803,61376.0,61375.0,0.001636]
[1727868793276,2.79075103,61376.0,61375.0,0.001636]
[1727868793738,2.79075103,61376.0,61360.0,0.24535261]
[1727868793739,0.49929815,61362.0,61360.0,0.24535261]
[1727868793971,0.54123503,61362.0,61360.0,0.24535261]
[1727868794433,0.54123503,61362.0,61359.0,0.001638]
[1727868795256,0.54923503,61362.0,61359.0,0.001638]
[1727868795972,0.55923503,61362.0,61359.0,0.001638]
[1727868796716,0.58479031,61362.0,61359.0,0.001638]
[1727868797677,0.55923503,61362.0,61359.0,0.001638]
[1727868797923,0.28589815,61362.0,61359.0,0.001638]
[1727868798171,0.18589815,61362.0,61359.0,0.001638]
[1727868798426,0.18589815,61362.0,61361.0,0.225536]
[1727868798660,0.02293115,61362.0,61361.0,0.24119026]
[1727868799119,0.17789815,61362.0,61361.0,0.24119026]
[1727868799346,0.16789815,61362.0,61361.0,0.24119026]
[1727868799583,0.18689815,61362.0,61361.0,0.24119026]
[1727868799818,0.02393115,61362.0,61361.0,0.24119026]
[1727868800071,0.02393115,61362.0,61361.0,0.56885371]
[1727868800324,0.019,61362.0,61361.0,0.56885371]
[1727868800573,0.00493115,61371.0,61364.0,0.2276]
[1727868800780,0.00493115,61371.0,61370.0,0.162946]
[1727868801191,0.00493115,61371.0,61370.0,0.1785087]
[1727868801432,0.00493115,61374.0,61373.0,0.162938]
[1727868801663,0.00493115,61376.0,61375.0,0.162932]
[1727868801870,0.02554605,61379.0,61375.0,0.162932]
[1727868801871,0.00493115,61377.0,61375.0,0.16469445]
[1727868802084,0.16786115,61376.0,61375.0,0.01555055]
[1727868802294,0.16786115,61376.0,61375.0,0.17848255]
[1727868802295,0.00493115,61376.0,61375.0,0.17848255]
[1727868802507,0.02554605,61379.0,61373.0,0.1561]
[1727868802737,0.00111001,61381.0,61380.0,0.162919]
[1727868802951,0.00111001,61381.0,61380.0,0.245819]
[1727868803156,0.00493115,61389.0,61388.0,0.35303488]
[1727868803368,0.00493115,61389.0,61388.0,0.162898]
[1727868803789,0.00493115,61389.0,61388.0,0.34372976]
[1727868804860,0.00593115,61389.0,61388.0,0.35272976]
[1727868805066,0.00693115,61389.0,61388.0,0.19983176]
[1727868805274,0.00693115,61389.0,61388.0,0.03513731]
[1727868805275,0.16982615,61389.0,61388.0,0.03513731]
[1727868805492,0.00693115,61389.0,61388.0,0.03513731]
[1727868805920,0.16982615,61389.0,61388.0,0.03513731]
[1727868807213,0.31418862,61389.0,61388.0,0.019]
[1727868807415,0.31418862,61389.0,61388.0,0.009]
[1727868807416,0.31318862,61389.0,61388.0,0.009]
[1727868807622,0.00493115,61389.0,61376.0,0.40828161]
[1727868807832,0.325834,61381.0,61376.0,0.40828161]
[1727868808097,0.00493115,61377.0,61376.0,0.24535261]
[1727868808336,0.004,61389.0,61370.0,0.325887]
[1727868808337,0.00493115,61371.0,61370.0,0.162946]
[1727868808944,0.00493115,61371.0,61370.0,0.32764045]
[1727868809155,0.00493115,61371.0,61370.0,0.16469445]
[1727868809392,0.00493115,61371.0,61370.0,0.32764045]
[1727868810637,0.00493115,61371.0,61370.0,0.16469445]
[1727868810881,0.00593115,61371.0,61370.0,0.16869445]
[1727868811280,0.00593115,61371.0,61370.0,0.17469445]
[1727868811281,0.03247661,61371.0,61370.0,0.17469445]
[1727868811717,0.03247661,61371.0,61370.0,0.33764045]
[1727868811971,0.03147661,61371.0,61370.0,0.33364045]
[1727868812206,0.03047661,61371.0,61370.0,0.32764045]
[1727868812437,0.00493115,61371.0,61370.0,0.32864045]
[1727868812887,0.00593115,61371.0,61370.0,0.32864045]
[1727868813527,0.00593115,61371.0,61370.0,0.16569445]
[1727868813944,0.00593115,61371.0,61370.0,0.16469445]
[1727868814146,0.00493115,61371.0,61370.0,0.16469445]
[1727868814328,0.00493115,61371.0,61370.0,0.33364045]
[1727868814780,0.00493115,61377.0,61370.0,0.16869445]
[1727868815009,0.00493115,61383.0,61382.0,0.162914]
[1727868815218,0.00493115,61383.0,61382.0,0.51774533]
[1727868815655,0.03047179,61383.0,61382.0,0.51774533]
[1727868815881,0.03047179,61383.0,61382.0,0.32760845]
[1727868816296,0.02554064,61383.0,61382.0,0.32760845]
[1727868816500,0.03047179,61383.0,61382.0,0.32760845]
[1727868816709,0.03047179,61383.0,61382.0,0.16469445]
[1727868817348,0.03047179,61383.0,61382.0,0.51774533]
[1727868817572,0.00493115,61383.0,61382.0,0.51774533]
[1727868817782,0.325738,61399.0,61391.0,0.162888]
[1727868818001,0.00493115,61385.0,61384.0,0.325817]
[1727868818218,0.00493115,61385.0,61384.0,0.65341845]
[1727868819671,0.00593115,61385.0,61384.0,0.66341845]
[1727868819878,0.00593115,61385.0,61384.0,0.67935599]
[1727868820500,0.03247019,61385.0,61384.0,0.68635599]
[1727868822508,0.00693115,61385.0,61384.0,0.68635599]
[1727868823259,0.002,61385.0,61384.0,0.68635599]
[1727868823535,0.00693115,61385.0,61384.0,0.68635599]
[1727868824816,0.002,61385.0,61384.0,0.68635599]
[1727868825551,0.00693115,61385.0,61384.0,0.68635599]
[1727868826307,0.002,61385.0,61384.0,0.68635599]
[1727868826553,0.00693115,61385.0,61384.0,0.68635599]
[1727868827779,0.00775015,61385.0,61384.0,0.68635599]
[1727868829777,0.00775015,61385.0,61384.0,0.36053999]
[1727868831870,0.002819,61385.0,61384.0,0.36053999]
[1727868832108,0.002819,61385.0,61384.0,0.46053999]
[1727868832324,0.002819,61385.0,61384.0,0.56811861]
[1727868832536,0.002819,61385.0,61384.0,0.59959176]
[1727868833398,0.002819,61385.0,61384.0,0.53993999]
[1727868833618,0.002819,61385.0,61384.0,0.5997056]
[1727868834942,0.002819,61385.0,61384.0,0.7490056]
[1727868835807,0.002819,61385.0,61384.0,0.7510056]
[1727868836519,0.002819,61385.0,61384.0,0.71946899]
[1727868836743,0.002819,61385.0,61384.0,0.75085333]
[1727868838477,0.002819,61385.0,61384.0,0.74885333]
[1727868839153,0.002819,61385.0,61384.0,0.75085333]
[1727868839846,0.002819,61385.0,61384.0,0.7226281]
[1727868840076,0.002819,61385.0,61384.0,0.75077078]
[1727868840339,0.02835511,61385.0,61384.0,0.71938267]
[1727868840555,0.02835511,61385.0,61384.0,0.75078094]
[1727868841777,0.02835511,61385.0,61384.0,0.79942136]
[1727868842007,0.002819,61385.0,61384.0,0.79942136]
[1727868842222,0.002819,61385.0,61384.0,0.52208094]
[1727868842843,0.002819,61385.0,61384.0,0.52008094]
[1727868843057,0.002819,61385.0,61384.0,0.56875231]
[1727868843486,0.002819,61385.0,61384.0,0.75140737]
[1727868843911,0.002819,61385.0,61384.0,0.75340737]
[1727868844555,0.002819,61385.0,61384.0,0.84880367]
[1727868844765,0.02835554,61385.0,61384.0,0.84880367]
[1727868845026,0.02835554,61385.0,61384.0,0.39687548]
[1727868845228,0.34509269,61385.0,61384.0,0.03293754]
[1727868845872,0.34409269,61385.0,61384.0,0.01]
[1727868846088,0.34409269,61385.0,61384.0,0.015]
[1727868846089,0.31855615,61385.0,61384.0,0.015]
[1727868846565,0.15465015,61385.0,61381.0,0.001638]
[1727868846784,0.162914,61382.0,61381.0,0.001638]
[1727868847222,0.16784515,61382.0,61381.0,0.001638]
[1727868847483,0.24624515,61382.0,61381.0,0.001638]
[1727868848340,0.08333115,61382.0,61381.0,0.001638]
[1727868848604,0.00493115,61382.0,61381.0,0.33424845]
[1727868849921,0.00493115,61382.0,61381.0,0.34257285]
[1727868850155,0.00493115,61382.0,61381.0,0.34457285]
[1727868850576,0.16784515,61382.0,61381.0,0.0169624]
[1727868851009,0.16784515,61382.0,61381.0,0.001638]
[1727868851228,0.58418203,61382.0,61381.0,0.004638]
[1727868851709,0.58418203,61382.0,61381.0,0.001638]
[1727868851710,1.32340803,61382.0,61381.0,0.001638]
[1727868851925,1.15958903,61382.0,61381.0,0.002638]
[1727868852141,1.07478703,61382.0,61381.0,0.002638]
[1727868852574,0.73803003,61382.0,61381.0,0.001638]
[1727868852818,0.58418203,61382.0,61381.0,0.001638]
[1727868853032,0.58418203,61382.0,61381.0,0.003638]
[1727868853240,0.58418203,61382.0,61381.0,0.001638]
[1727868853683,0.60518203,61382.0,61381.0,0.003638]
[1727868853893,0.62198353,61382.0,61381.0,0.003638]
[1727868854809,0.41504515,61382.0,61381.0,0.003638]
[1727868855935,0.40404515,61382.0,61381.0,0.002638]
[1727868856157,0.41304515,61382.0,61381.0,0.002638]
[1727868856365,0.40304515,61382.0,61381.0,0.002638]
[1727868856580,0.41104515,61382.0,61381.0,0.003638]
[1727868860739,0.41104515,61382.0,61381.0,0.002638]
[1727868860966,0.40304515,61382.0,61381.0,0.002638]
[1727868861204,0.40004515,61382.0,61381.0,0.002638]
[1727868861446,0.25964515,61382.0,61381.0,0.003638]
[1727868861706,0.01793115,61382.0,61381.0,0.003638]
[1727868861998,0.01093115,61382.0,61381.0,0.52038533]
[1727868862237,0.0364735,61382.0,61381.0,0.34373322]
[1727868862486,0.03154235,61382.0,61381.0,0.5338701]
[1727868863211,0.03654235,61382.0,61381.0,0.5338701]
[1727868863441,0.03154235,61382.0,61381.0,0.5338701]
[1727868863677,0.03154235,61382.0,61381.0,0.5378701]
[1727868864148,0.03154235,61382.0,61381.0,0.34773322]
[1727868864387,0.02554235,61382.0,61381.0,0.34673322]
[1727868864625,0.02554235,61382.0,61381.0,0.34273322]
[1727868864871,0.02654235,61382.0,61381.0,0.35473322]
[1727868865102,0.02654235,61382.0,61381.0,0.35673322]
[1727868865579,0.02654235,61382.0,61381.0,0.35473322]
[1727868865822,0.02754235,61382.0,61381.0,0.36173322]
[1727868866509,0.002,61382.0,61381.0,0.36173322]
[1727868869969,0.002,61382.0,61381.0,0.46173322]
[1727868869970,0.02753955,61382.0,61381.0,0.46173322]
[1727868874119,0.02753955,61382.0,61381.0,0.7661383]
[1727868874364,0.002,61382.0,61381.0,0.93182174]
[1727868874611,0.000819,61385.0,61384.0,0.297538]
[1727868874826,0.000819,61385.0,61384.0,0.91171097]
[1727868875049,0.000819,61385.0,61384.0,0.92495404]
[1727868875699,0.000819,61385.0,61384.0,1.00665404]
[1727868876193,0.000819,61385.0,61384.0,0.97856718]
[1727868876415,0.001819,61385.0,61384.0,0.99324366]
[1727868876630,0.001819,61385.0,61384.0,1.03324816]
[1727868876846,0.001819,61385.0,61384.0,1.02321014]
[1727868877515,0.001819,61385.0,61384.0,1.00921014]
[1727868877731,0.000819,61385.0,61384.0,1.01221014]
[1727868877953,0.000819,61385.0,61384.0,0.92884008]
[1727868878625,0.000819,61385.0,61384.0,0.92684008]
[1727868878832,0.000819,61385.0,61384.0,0.92892681]
[1727868879039,0.000819,61385.0,61384.0,1.00194225]
[1727868879284,0.000819,61385.0,61384.0,0.92892681]
[1727868879757,0.000819,61385.0,61384.0,1.00194032]
[1727868879972,0.000819,61385.0,61384.0,1.02628073]
[1727868880214,0.24535261,61398.0,61397.0,0.164874]
[1727868880435,0.24535261,61398.0,61397.0,0.65233533]
[1727868880653,0.02553323,61400.0,61399.0,0.297499]
[1727868880881,0.24535261,61406.0,61403.0,0.295488]
[1727868881137,0.24535261,61406.0,61403.0,0.72528567]
[1727868881347,0.000819,61413.0,61403.0,0.72528567]
[1727868881348,0.000819,61413.0,61403.0,0.89393535]
[1727868881763,0.000819,61413.0,61403.0,0.66542837]
[1727868882219,0.000819,61413.0,61403.0,0.96667626]
[1727868882220,0.02634652,61404.0,61403.0,0.96667626]
[1727868882452,0.02734652,61404.0,61403.0,1.00500206]
[1727868882684,0.000819,61413.0,61403.0,0.98060793]
[1727868882910,0.000819,61413.0,61412.0,0.45297088]
[1727868883121,0.000819,61413.0,61412.0,0.45497088]
[1727868883336,0.000819,61413.0,61412.0,0.46799878]
[1727868883634,0.24535261,61425.0,61424.0,0.162802]
[1727868883840,0.24535261,61425.0,61424.0,0.45293888]
[1727868884060,0.24535261,61432.0,61431.0,0.162784]
[1727868884283,0.24535261,61432.0,61431.0,0.32747845]
[1727868884505,0.00493115,61435.0,61434.0,0.162776]
[1727868884724,0.00493115,61435.0,61434.0,0.32747045]
[1727868884942,0.00493115,61435.0,61434.0,0.34022627]
[1727868885375,0.00493115,61436.0,61435.0,0.162773]
[1727868885601,0.00493115,61436.0,61435.0,0.32746745]
[1727868885817,0.00493115,61436.0,61435.0,0.34022085]
[1727868886030,0.00575015,61437.0,61436.0,0.162771]
[1727868886240,0.00575015,61437.0,61436.0,0.32746545]
[1727868886453,0.00575015,61437.0,61436.0,0.34021642]
[1727868887335,0.00575015,61437.0,61436.0,0.17744542]
[1727868887768,0.00575015,61437.0,61436.0,0.18844542]
[1727868887975,0.00575015,61437.0,61436.0,0.19644542]
[1727868888194,0.00575015,61437.0,61436.0,0.35921642]
[1727868889050,0.03126841,61437.0,61436.0,0.35921642]
[1727868889466,0.00575015,61437.0,61436.0,0.35921642]
[1727868890979,0.000819,61437.0,61436.0,0.35921642]
[1727868891663,0.000819,61437.0,61436.0,0.19644542]
[1727868891873,0.000819,61437.0,61436.0,0.17744542]
[1727868891874,0.163587,61437.0,61436.0,0.17744542]
[1727868892092,0.16851815,61437.0,61436.0,0.01275097]
[1727868892300,0.16851815,61437.0,61436.0,0.03975097]
[1727868892565,0.16851815,61437.0,61436.0,0.027]
[1727868893457,0.16851815,61437.0,61436.0,0.014]
[1727868893640,0.162784,61431.0,61429.0,0.24535261]
[1727868893885,0.162784,61431.0,61430.0,0.17737323]
[1727868894308,0.18830481,61431.0,61430.0,0.17737323]
[1727868895178,0.26930481,61431.0,61430.0,0.17737323]
[1727868895386,0.26930481,61431.0,61430.0,0.18037323]
[1727868895600,0.26930481,61431.0,61430.0,0.18537323]
[1727868897317,0.10652081,61431.0,61430.0,0.18537323]
[1727868897530,0.10652081,61431.0,61430.0,0.34815923]
[1727868898263,0.10652081,61431.0,61430.0,0.18537323]
[1727868898472,0.11145196,61431.0,61430.0,0.18537323]
[1727868898683,0.27423596,61431.0,61430.0,0.18537323]
[1727868899365,0.24871515,61431.0,61430.0,0.18537323]
[1727868899599,0.24871515,61431.0,61430.0,0.02067878]
[1727868899846,0.24871515,61431.0,61430.0,0.008]
[1727868900049,0.24871515,61431.0,61430.0,0.005]
[1727868900290,0.24871515,61431.0,61430.0,0.004]
[1727868900747,0.24871515,61431.0,61430.0,0.006]
[1727868901017,0.162799,61426.0,61424.0,0.24535261]
[1727868901267,0.00493115,61425.0,61424.0,0.24535261]
[1727868901479,0.16773215,61425.0,61422.0,0.162806]
[1727868901697,0.16773215,61425.0,61424.0,0.162802]
[1727868901698,0.00493115,61425.0,61424.0,0.162802]
[1727868901979,0.00493115,61425.0,61424.0,0.32749645]
[1727868902399,0.00493115,61425.0,61424.0,0.33549645]
[1727868902617,0.02552301,61425.0,61424.0,0.33549645]
[1727868902828,0.00493115,61426.0,61425.0,0.1628]
[1727868903038,0.00493115,61426.0,61425.0,0.32749445]
[1727868904100,0.00493115,61431.0,61430.0,0.162786]
[1727868904306,0.00493115,61431.0,61430.0,0.51761733]
[1727868904521,0.00493115,61432.0,61430.0,0.35483133]
[1727868904733,0.00493115,61432.0,61431.0,0.32747845]
[1727868905615,0.16771215,61432.0,61431.0,0.16469445]
[1727868905827,0.00493115,61432.0,61431.0,0.16469445]
[1727868906043,0.00493115,61432.0,61431.0,0.32747845]
[1727868906763,0.00574915,61435.0,61434.0,0.162776]
[1727868906997,0.000818,61435.0,61434.0,0.51760733]
[1727868907246,0.000818,61435.0,61434.0,0.61760733]
[1727868907447,0.000818,61435.0,61434.0,0.64560095]
[1727868907665,0.000819,61437.0,61436.0,0.295401]
[1727868907886,0.000819,61437.0,61436.0,0.46009545]
[1727868908096,0.000819,61437.0,61436.0,0.48808907]
[1727868908755,0.000819,61437.0,61436.0,0.49290192]
[1727868909387,0.000819,61437.0,61436.0,0.4649083]
[1727868909605,0.000819,61437.0,61436.0,0.4669083]
[1727868909818,0.000819,61443.0,61442.0,0.162755]
[1727868910031,0.24617161,61443.0,61442.0,0.65021633]
[1727868910240,0.000819,61443.0,61442.0,0.6671414]
[1727868911547,0.000819,61443.0,61442.0,0.6811414]
[1727868911758,0.000819,61443.0,61442.0,0.6671414]
[1727868911959,0.000819,61443.0,61442.0,0.6811414]
[1727868912141,0.000819,61443.0,61442.0,0.6625114]
[1727868912803,0.02633142,61447.0,61442.0,0.6625114]
[1727868912804,0.000819,61456.0,61455.0,0.26272]
[1727868913041,0.000819,61456.0,61455.0,0.46004445]
[1727868913258,0.000819,61456.0,61455.0,0.47871997]
[1727868913684,0.000819,61456.0,61455.0,0.48071997]
[1727868914161,0.000819,61456.0,61455.0,0.56371997]
[1727868914371,0.000819,61456.0,61455.0,0.65536708]
[1727868914580,0.000819,61456.0,61455.0,0.80316708]
[1727868914787,0.000819,61456.0,61455.0,1.11338811]
[1727868914996,0.000819,61456.0,61455.0,1.05475177]
[1727868915220,0.000819,61456.0,61455.0,1.13752343]
[1727868915459,0.000819,61456.0,61455.0,1.04075177]
[1727868915699,0.000819,61456.0,61455.0,1.33881978]
[1727868915911,0.000819,61456.0,61455.0,1.34350594]
[1727868916405,0.000819,61456.0,61455.0,1.31549147]
[1727868916536,0.000819,61456.0,61455.0,1.28749147]
[1727868916772,0.000819,61456.0,61455.0,1.27349147]
[1727868916999,0.000819,61456.0,61455.0,1.40847452]
[1727868917202,0.000819,61456.0,61455.0,1.28749147]
[1727868917384,0.000819,61456.0,61455.0,1.30149147]
[1727868917586,0.24535261,61473.0,61469.0,0.262683]
[1727868917790,0.24535261,61473.0,61469.0,0.42737745]
[1727868918010,0.0778,61479.0,61469.0,0.44578993]
[1727868918235,0.0002,61479.0,61469.0,0.48041993]
[1727868918468,0.0002,61479.0,61469.0,0.47841993]
[1727868918882,0.0002,61479.0,61469.0,0.45978993]
[1727868919099,0.0784,61472.0,61469.0,0.45978993]
[1727868919327,0.0002,61479.0,61469.0,0.74385794]
[1727868919556,0.0784,61478.0,61469.0,0.74385794]
[1727868920185,0.0002,61479.0,61469.0,0.73185794]
[1727868920392,0.0002,61479.0,61469.0,0.74385794]
[1727868920841,0.0002,61479.0,61469.0,0.45978993]
[1727868920842,0.325514,61479.0,61469.0,0.45978993]
[1727868921060,0.0002,61479.0,61469.0,0.44578993]
[1727868921284,0.162857,61479.0,61469.0,0.45978993]
[1727868921497,0.0002,61479.0,61469.0,0.45978993]
[1727868921697,0.0002,61479.0,61469.0,0.44578993]
[1727868921924,0.0002,61479.0,61469.0,0.72985794]
[1727868922162,0.02550048,61473.0,61469.0,0.74085794]
[1727868923223,0.000918,61470.0,61469.0,0.74085794]
[1727868923462,0.000918,61470.0,61469.0,0.72985794]
[1727868923878,0.000918,61470.0,61469.0,0.47278993]
[1727868924326,0.000918,61470.0,61469.0,0.45978993]
[1727868924548,0.000918,61470.0,61469.0,0.47378993]
[1727868926726,0.000818,61470.0,61469.0,0.47378993]
[1727868927167,0.10252018,61474.0,61473.0,0.262673]
[1727868927402,0.10252018,61474.0,61473.0,0.42736745]
[1727868927620,0.10242018,61474.0,61473.0,0.28298472]
[1727868928054,0.26429018,61474.0,61473.0,0.28298472]
[1727868928552,0.10142018,61474.0,61473.0,0.44565772]
[1727868928795,0.10092018,61474.0,61473.0,0.44565772]
[1727868928995,0.10062018,61474.0,61473.0,0.44565772]
[1727868929399,0.10052018,61474.0,61473.0,0.28298472]
[1727868929598,0.10042018,61474.0,61473.0,0.29598472]
[1727868929921,0.09972018,61474.0,61473.0,0.29598472]
[1727868930123,0.09962018,61474.0,61473.0,0.30598472]
[1727868930333,0.09942018,61474.0,61473.0,0.30598472]
[1727868930560,0.26179018,61474.0,61473.0,0.30598472]
[1727868930784,0.09872018,61474.0,61473.0,0.46865772]
[1727868931018,0.09862018,61474.0,61473.0,0.46865772]
[1727868931212,0.09852018,61474.0,61473.0,0.46865772]
[1727868931445,0.26119018,61474.0,61473.0,0.30598472]
[1727868931679,0.09852018,61474.0,61473.0,0.30598472]
[1727868932138,0.26119018,61474.0,61473.0,0.30598472]
[1727868932410,0.09852018,61474.0,61473.0,0.30598472]
[1727868933074,0.09852018,61474.0,61473.0,0.46865772]
[1727868933313,0.09852018,61474.0,61473.0,0.30598472]
[1727868933770,0.09852018,61474.0,61473.0,0.46865772]
[1727868934037,0.02550218,61474.0,61473.0,0.46865772]
[1727868935421,0.02550218,61474.0,61473.0,0.45565772]
[1727868935656,0.02632118,61474.0,61473.0,0.45565772]
[1727868935887,0.02632118,61474.0,61473.0,0.49228772]
[1727868936105,0.02632118,61474.0,61473.0,0.50828772]
[1727868936355,0.0002,61479.0,61473.0,0.34361472]
[1727868936582,0.0002,61479.0,61478.0,0.262659]
[1727868936796,0.0002,61479.0,61478.0,0.44196361]
[1727868937930,0.0002,61479.0,61478.0,0.45596361]
[1727868938137,0.1372,61479.0,61478.0,0.02861016]
[1727868938358,0.1372,61479.0,61478.0,0.19330461]
[1727868938836,0.1372,61479.0,61478.0,0.35596361]
[1727868939052,0.1372,61479.0,61478.0,0.34196361]
[1727868939495,0.299857,61479.0,61478.0,0.19330461]
[1727868939865,0.1372,61479.0,61478.0,0.20730461]
[1727868940470,0.1372,61479.0,61478.0,0.36996361]
[1727868940683,0.0002,61479.0,61478.0,0.36996361]
[1727868941122,0.0002,61479.0,61478.0,0.55931321]
[1727868945596,0.0002,61479.0,61478.0,0.20730461]
[1727868945827,0.0002,61479.0,61478.0,0.36996361]
[1727868947510,0.0002,61479.0,61478.0,0.20730461]
[1727868948036,0.0002,61479.0,61478.0,0.36996361]
[1727868948288,0.0002,61479.0,61478.0,0.04261016]
[1727868948289,0.241376,61479.0,61478.0,0.04261016]
[1727868948528,0.241376,61479.0,61478.0,0.028]
[1727868948529,0.386076,61479.0,61478.0,0.028]
[1727868949000,0.386076,61479.0,61478.0,0.014]
[1727868949244,0.162666,61476.0,61473.0,0.16431]
[1727868949481,0.223419,61479.0,61474.0,0.16469445]
[1727868949482,0.162667,61475.0,61474.0,0.16469445]
[1727868949716,0.162665,61476.0,61474.0,0.17929748]
[1727868950938,0.162665,61476.0,61474.0,0.18729748]
[1727868951175,0.162667,61475.0,61474.0,0.18729748]
[1727868951408,0.162661,61478.0,61475.0,0.18164342]
[1727868951729,0.57423787,61479.0,61478.0,0.162659]
[1727868951730,0.10422087,61479.0,61478.0,0.162659]
[1727868951989,0.02652087,61479.0,61478.0,0.53567891]
[1727868952245,0.001019,61479.0,61478.0,0.55027844]
[1727868952488,0.001019,61479.0,61478.0,0.65027844]
[1727868953423,0.001019,61479.0,61478.0,0.66027844]
[1727868953671,0.001019,61479.0,61478.0,0.95826591]
[1727868953914,0.001019,61479.0,61478.0,0.66027844]
[1727868954395,0.001019,61479.0,61478.0,0.95851129]
[1727868954641,0.001019,61479.0,61478.0,0.88546295]
[1727868954875,0.001019,61479.0,61478.0,1.06603778]
[1727868955380,0.001019,61479.0,61478.0,1.007243]
[1727868955615,0.001019,61479.0,61478.0,0.97697401]
[1727868955857,0.001019,61479.0,61478.0,0.97397401]
[1727868956100,0.001019,61479.0,61478.0,0.97097401]
[1727868956336,0.001019,61479.0,61478.0,0.98097401]
[1727868956557,0.001019,61479.0,61478.0,0.97097401]
[1727868956775,0.001019,61479.0,61478.0,0.97164136]
[1727868957004,0.001019,61479.0,61478.0,0.99964136]
[1727868957470,0.001019,61479.0,61478.0,0.94074984]
[1727868958408,0.001019,61479.0,61478.0,1.08742348]
[1727868958845,0.47730251,61492.0,61489.0,0.162629]
[1727868959068,0.47730251,61492.0,61490.0,0.16469445]
[1727868959310,0.2319499,61492.0,61490.0,0.16469445]
[1727868959524,0.2319499,61492.0,61491.0,0.01456041]
[1727868959741,0.2319499,61492.0,61491.0,0.17925486]
[1727868960141,0.0693259,61492.0,61491.0,0.17925486]
[1727868960370,0.2319479,61492.0,61491.0,0.17925486]
[1727868960804,0.2319479,61492.0,61491.0,0.18425486]
[1727868961933,0.2319479,61492.0,61491.0,0.01956041]
[1727868962151,0.2319479,61492.0,61491.0,0.02656041]
[1727868962377,0.3696479,61492.0,61491.0,0.012]
[1727868962598,0.0825,61490.0,61477.0,0.24535261]
[1727868962819,0.382859,61478.0,61477.0,0.41004706]
[1727868963056,0.382859,61478.0,61477.0,0.24535261]
[1727868963301,0.162667,61475.0,61474.0,0.001638]
[1727868963747,0.242267,61475.0,61474.0,0.001638]
[1727868964188,0.27996329,61475.0,61474.0,0.001638]
[1727868964414,0.5753166,61475.0,61474.0,0.001638]
[1727868964688,0.5753166,61475.0,61458.0,0.07316146]
[1727868964689,0.325366,61470.0,61464.0,0.24535261]
[1727868964917,0.5739436,61465.0,61464.0,0.24535261]
[1727868965604,0.162699,61463.0,61462.0,0.01906348]
[1727868966303,0.0792,61465.0,61463.0,0.162698]
[1727868966516,0.0792,61465.0,61464.0,0.16469445]
[1727868966964,0.0792,61465.0,61464.0,0.32739045]
[1727868966965,0.0782,61465.0,61464.0,0.32739045]
[1727868968261,0.0782,61465.0,61464.0,0.33239045]
[1727868968912,0.0792,61465.0,61464.0,0.33939045]
[1727868969587,0.001,61465.0,61464.0,0.33939045]
[1727868970065,0.001,61465.0,61464.0,0.35400474]
[1727868971823,0.001,61465.0,61464.0,0.64335434]
[1727868972702,0.001,61465.0,61464.0,0.69212864]
[1727868973141,0.001,61465.0,61464.0,0.94271094]
[1727868973390,0.001,61465.0,61464.0,1.12092328]
[1727868973626,0.001,61465.0,61464.0,1.16607463]
[1727868973842,0.001,61465.0,61464.0,1.14694643]
[1727868974085,0.001,61465.0,61464.0,1.06852602]
[1727868974717,0.001,61465.0,61464.0,1.04439782]
[1727868974948,0.001,61465.0,61464.0,1.03384191]
[1727868975170,0.24535261,61478.0,61470.0,0.325361]
[1727868975390,0.24535261,61478.0,61464.0,0.83980388]
[1727868975391,0.24535261,61471.0,61465.0,0.1]
[1727868975603,0.24535261,61471.0,61467.0,0.162687]
[1727868975604,0.162679,61471.0,61467.0,0.162687]
[1727868975820,0.162682,61470.0,61464.0,0.029636]
[1727868976045,0.162694,61465.0,61464.0,0.029636]
[1727868976271,0.162694,61465.0,61464.0,0.001636]
[1727868976478,0.325368,61469.0,61465.0,0.014]
[1727868976691,0.162691,61466.0,61465.0,0.014]
[1727868977358,0.162691,61466.0,61464.0,0.16933045]
[1727868977853,0.162694,61465.0,61464.0,0.001636]
[1727868979181,0.162694,61465.0,61464.0,0.006636]
[1727868979401,0.162694,61465.0,61464.0,0.001636]
[1727868979621,0.162694,61465.0,61464.0,0.003636]
[1727868979842,0.162694,61465.0,61464.0,0.008636]
[1727868980075,0.162694,61465.0,61464.0,0.003636]
[1727868980318,0.162694,61465.0,61464.0,0.001636]
[1727868980527,0.162694,61465.0,61464.0,0.009636]
[1727868982532,0.02550781,61466.0,61464.0,0.009636]
[1727868982777,0.162671,61474.0,61469.0,0.325363]
[1727868983000,0.162671,61474.0,61470.0,0.162679]
[1727868983220,0.325334,61476.0,61470.0,0.162679]
[1727868983221,0.241973,61473.0,61470.0,0.162679]
[1727868983438,0.10480469,61473.0,61471.0,0.162678]
[1727868983658,0.10480469,61473.0,61470.0,0.16469445]
[1727868983885,0.10480469,61473.0,61470.0,0.32737445]
[1727868984366,0.162675,61472.0,61470.0,0.16469445]